fUSD/lending_fUSD_20250521
["ID","MTS","AMOUNT","RATE_DAILY","PERIOD"]
[361828874,1747823682294,-2122.24,0.0003863,5]
[361828875,1747823682303,-603.94,0.0003863,5]
[361828876,1747823682313,-5021.23,0.0003863,5]
[361828877,1747823682324,-1529.49,0.0003863,5]
[361828878,1747823682333,-1250.7,0.0003863,5]
[361828879,1747823682342,-1386.81,0.0003863,5]
[361828880,1747823682352,-1682.48,0.0003863,5]
[361828881,1747823682361,-730.49,0.0003863,5]
[361828882,1747823682371,-447.9,0.0003863,5]
[361828883,1747823682380,-2229.66,0.0003863,5]
[361828884,1747823682390,-1324.88,0.0003863,5]
[361828885,1747823682401,-472.1,0.0003863,5]
[361828886,1747823682411,-434.93,0.0003863,5]
[361828887,1747823682420,-1282.33,0.0003863,5]
[361828888,1747823682429,-444.34,0.0003863,5]
[361828889,1747823682441,-1343.09,0.0003863,5]
[361828890,1747823682452,-600.65,0.0003863,5]
[361828891,1747823682461,-1076.93,0.0003863,5]
[361828892,1747823682470,-2643.47,0.0003863,5]
[361828893,1747823682482,-1416.84,0.0003863,5]
[361828894,1747823682493,-1332.5,0.0003863,5]
[361828895,1747823682504,-682.19,0.0003863,5]
[361828896,1747823682513,-438.34,0.0003863,5]
[361828897,1747823682523,-1392.97,0.0003863,5]
[361828898,1747823682533,-632.83,0.0003863,5]
[361828899,1747823682542,-713.78,0.0003863,5]
[361828900,1747823682552,-2568.63,0.0003863,5]
[361828901,1747823682562,-791.4,0.0003863,5]
[361828902,1747823682571,-1222.57,0.0003863,5]
[361828903,1747823682581,-1185.11,0.0003863,5]
[361828904,1747823682590,-3400.95,0.0003863,5]
[361828905,1747823682600,-559.3,0.0003863,5]
[361828906,1747823682611,-618.99,0.0003863,5]
[361828907,1747823682621,-2592.87,0.0003863,5]
[361828908,1747823682630,-729.48,0.0003863,5]
[361828909,1747823682640,-1036.77,0.0003863,5]
[361828910,1747823682651,-912.69,0.0003863,5]
[361828911,1747823682661,-2077.17,0.0003863,5]
[361828912,1747823682670,-474.23,0.0003863,5]
[361828913,1747823682680,-633.02,0.0003863,5]
[361828914,1747823682689,-2143.32,0.0003863,5]
[361828915,1747823682700,-2433.64,0.0003863,5]
[361828916,1747823682710,-2156.45,0.0003863,5]
[361828917,1747823682720,-680.33,0.0003863,5]
[361828918,1747823682730,-1587.63,0.0003863,5]
[361828919,1747823682740,-3338.68,0.0003863,5]
[361828920,1747823682751,-2132.67,0.0003863,5]
[361828921,1747823682761,-539.66,0.0003863,5]
[361828922,1747823682771,-1108.21,0.0003863,5]
[361828923,1747823682781,-1448.56,0.0003863,5]
[361828924,1747823682792,-1231.09,0.0003863,5]
[361828925,1747823682802,-1449.81,0.0003863,5]
[361828926,1747823682812,-420.0,0.0003863,5]
[361828927,1747823682823,-2507.82,0.0003863,5]
[361828928,1747823682833,-2269.59,0.0003863,5]
[361828929,1747823682843,-3289.43,0.0003863,5]
[361828930,1747823682853,-461.55,0.0003863,5]
[361828931,1747823682863,-1017.25,0.0003863,5]
[361828932,1747823682874,-1196.46,0.0003863,5]
[361828933,1747823682883,-1902.38,0.0003863,5]
[361828934,1747823682893,-4528.11,0.0003863,5]
[361828935,1747823682903,-2709.01,0.0003863,5]
[361828936,1747823682913,-437.58,0.0003863,5]
[361828937,1747823682925,-934.68,0.0003863,5]
[361828938,1747823682934,-644.31,0.0003863,5]
[361828939,1747823682945,-3000.52,0.0003863,5]
[361828940,1747823682956,-2558.61,0.0003863,5]
[361828941,1747823682966,-919.21,0.0003863,5]
[361828942,1747823682976,-1016.83,0.0003863,5]
[361828943,1747823682986,-3800.75,0.0003863,5]
[361828944,1747823682997,-1283.86,0.0003863,5]
[361828945,1747823683007,-5012.54,0.0003863,5]
[361828946,1747823683017,-4257.36,0.0003863,5]
[361828947,1747823683027,-420.0,0.0003863,5]
[361828948,1747823683037,-2661.46,0.0003863,5]
[361828949,1747823683047,-7175.57,0.0003863,5]
[361828950,1747823683055,-1626.84,0.0003863,5]
[361828951,1747823683065,-7478.95,0.0003863,5]
[361828952,1747823683075,-1050.66,0.0003863,5]
[361828953,1747823683085,-3186.22,0.0003863,5]
[361828954,1747823683095,-459.54,0.0003863,5]
[361828955,1747823683105,-1297.42,0.0003863,5]
[361828956,1747823683115,-1603.59,0.0003863,5]
[361828957,1747823683126,-1706.72,0.0003863,5]
[361828958,1747823683136,-1118.07,0.0003863,5]
[361828959,1747823683147,-1819.17,0.0003863,5]
[361828960,1747823683157,-477.62,0.0003863,5]
[361828961,1747823683168,-500.47,0.0003863,5]
[361828962,1747823683178,-3456.53,0.0003863,5]
[361828963,1747823683189,-864.67,0.0003863,5]
[361828964,1747823683198,-1245.18,0.0003863,5]
[361828965,1747823683210,-1044.28,0.0003863,5]
[361828966,1747823683220,-483.53,0.0003863,5]
[361828967,1747823683230,-485.82,0.0003863,5]
[361828968,1747823683240,-2279.99,0.0003863,5]
[361828969,1747823683250,-1093.42,0.0003863,5]
[361828970,1747823683261,-773.61,0.0003863,5]
[361828971,1747823683272,-1587.6,0.0003863,5]
[361828972,1747823683282,-3023.35,0.0003863,5]
[361828973,1747823683292,-2681.61,0.0003863,5]
[361828974,1747823683303,-3921.51,0.0003863,5]
[361828975,1747823683314,-774.74,0.0003863,5]
[361828976,1747823683324,-11832.32,0.0003863,5]
[361828977,1747823683334,-1140.49,0.0003863,5]
[361828978,1747823683346,-716.85,0.0003863,5]
[361828979,1747823683357,-1451.14,0.0003863,5]
[361828980,1747823683366,-1980.16,0.0003863,5]
[361828981,1747823683376,-4169.63,0.0003863,5]
[361828982,1747823683386,-614.3,0.0003863,5]
[361828983,1747823683397,-478.74,0.0003863,5]
[361828984,1747823683407,-1064.83,0.0003863,5]
[361828985,1747823683417,-1031.8,0.0003863,5]
[361828986,1747823683426,-2328.19,0.0003863,5]
[361828987,1747823683437,-2178.09,0.0003863,5]
[361828988,1747823683446,-595.22,0.0003863,5]
[361828989,1747823683458,-12779.36,0.0003863,5]
[361828990,1747823683467,-3199.69,0.0003863,5]
[361828991,1747823683479,-464.93,0.0003863,5]
[361828992,1747823683491,-3624.48,0.0003863,5]
[361828993,1747823683500,-1385.93,0.0003863,5]
[361828994,1747823683510,-1592.89,0.0003863,5]
[361828995,1747823683520,-3239.25,0.0003863,5]
[361828996,1747823683529,-4626.37,0.0003863,5]
[361828997,1747823683539,-1377.38,0.0003863,5]
[361828998,1747823683548,-2100.46,0.0003863,5]
[361828999,1747823683559,-232873.01,0.0003863,5]
[361829000,1747823683569,-2870.6,0.0003863,5]
[361829001,1747823683579,-544.44,0.0003863,5]
[361829002,1747823683588,-2582.79,0.0003863,5]
[361829003,1747823683598,-613.45,0.0003863,5]
[361829004,1747823683608,-1455.85,0.0003863,5]
[361829005,1747823683618,-3817.8,0.0003863,5]
[361829006,1747823683627,-814.19,0.0003863,5]
[361829007,1747823683636,-1001.8,0.0003863,5]
[361829008,1747823683646,-24741.12,0.0003863,5]
[361829009,1747823683656,-746.18,0.0003863,5]
[361829010,1747823683666,-1332.61,0.0003863,5]
[361829011,1747823683675,-1140.2,0.0003863,5]
[361829012,1747823683685,-847.4,0.0003863,5]
[361829013,1747823683694,-6653.58,0.0003863,5]
[361829014,1747823683705,-2208.36,0.0003863,5]
[361829015,1747823683715,-3466.92,0.0003863,5]
[361829016,1747823683724,-756.27,0.0003863,5]
[361829017,1747823683734,-2780.98,0.0003863,5]
[361829018,1747823683743,-43430.9,0.0003863,5]
[361829019,1747823683753,-3727.2,0.0003863,5]
[361829020,1747823683763,-4377.12,0.0003863,5]
[361829021,1747823683773,-662.42,0.0003863,5]
[361829022,1747823683782,-1355.36,0.0003863,5]
[361829023,1747823683792,-3823.68,0.0003863,5]
[361829024,1747823683801,-1646.2,0.0003863,5]
[361829025,1747823683811,-1929.18,0.0003863,5]
[361829026,1747823683820,-692.1,0.0003863,5]
[361829027,1747823683830,-27430.46,0.0003863,5]
[361829028,1747823683839,-694.13,0.0003863,5]
[361829029,1747823683848,-1375.19,0.0003863,5]
[361829030,1747823683857,-1035.87,0.0003863,5]
[361829031,1747823683867,-8392.23,0.0003863,5]
[361829032,1747823683876,-3873.45,0.0003863,5]
[361829033,1747823683886,-2620.97,0.0003863,5]
[361829034,1747823683895,-683.8,0.0003863,5]
[361829035,1747823683905,-831.34,0.0003863,5]
[361829036,1747823683914,-2236.59,0.0003863,5]
[361829037,1747823683924,-862.9,0.0003863,5]
[361829038,1747823683934,-648.18,0.0003863,5]
[361829039,1747823683943,-333.94,0.0003863,5]
[361829040,1747823683954,-2431.99,0.0003863,5]
[361829041,1747823683963,-2055.72,0.0003863,5]
[361829042,1747823683974,-30819.65,0.0003863,5]
[361829043,1747823683983,-426.36,0.0003863,5]
[361829044,1747823683993,-3529.5,0.0003863,5]
[361829045,1747823684003,-420.0,0.0003863,5]
[361829046,1747823684013,-507.94,0.0003863,5]
[361829047,1747823684023,-7158.91,0.0003863,5]
[361829048,1747823684033,-1372.96,0.0003863,5]
[361829049,1747823684042,-1395.97,0.0003863,5]
[361829050,1747823684052,-11263.62,0.0003863,5]
[361829051,1747823684062,-11955.57,0.0003863,5]
[361829052,1747823684071,-10218.82,0.0003863,5]
[361829053,1747823684081,-903.34,0.0003863,5]
[361829054,1747823684091,-4237.43,0.0003863,5]
[361829055,1747823684100,-1156.02,0.0003863,5]
[361829056,1747823684110,-1250.1,0.0003863,5]
[361829057,1747823684119,-1940.56,0.0003863,5]
[361829058,1747823684128,-1535.0,0.0003863,5]
[361829059,1747823684138,-2611.65,0.0003863,5]
[361829060,1747823684147,-2088.87,0.0003863,5]
[361829061,1747823684157,-604.9,0.0003863,5]
[361829062,1747823684167,-436.47,0.0003863,5]
[361829063,1747823684176,-512.59,0.0003863,5]
[361829064,1747823684186,-4967.59,0.0003863,5]
[361829065,1747823684195,-3994.4,0.0003863,5]
[361829066,1747823684207,-997.3,0.0003863,5]
[361829067,1747823684215,-3960.15,0.0003863,5]
[361829068,1747823684224,-2461.55,0.0003863,5]
[361829069,1747823684233,-2650.09,0.0003863,5]
[361829070,1747823684243,-1029.17,0.0003863,5]
[361829071,1747823684252,-655.48,0.0003863,5]
[361829072,1747823684262,-2763.51,0.0003863,5]
[361829073,1747823684271,-6358.26,0.0003863,5]
[361829074,1747823684281,-3823.46,0.0003863,5]
[361829075,1747823684290,-550.25251316,0.0003863,5]
[361829076,1747823684299,-2138.94,0.0003863,5]
[361829077,1747823684309,-3514.65,0.0003863,5]
[361829078,1747823684318,-578.47,0.0003863,5]
[361829079,1747823684329,-1778.66,0.0003863,5]
[361829080,1747823684338,-7467.95,0.0003863,5]
[361829081,1747823684350,-4923.96,0.0003863,5]
[361829082,1747823684360,-420.87,0.0003863,5]
[361829083,1747823684369,-1642.25,0.0003863,5]
[361829084,1747823684378,-1388.95,0.0003863,5]
[361829085,1747823684387,-15894.82,0.0003863,5]
[361829086,1747823684398,-7928.56,0.0003863,5]
[361829087,1747823684409,-535.54,0.0003863,5]
[361829088,1747823684419,-3648.84,0.0003863,5]
[361829089,1747823684428,-18415.06,0.0003863,5]
[361829090,1747823684439,-584.64,0.0003863,5]
[361829091,1747823684448,-2534.37,0.0003863,5]
[361829092,1747823684458,-1096.3,0.0003863,5]
[361829093,1747823684469,-2111.71,0.0003863,5]
[361829094,1747823684480,-2727.38,0.0003863,5]
[361829095,1747823684490,-481.82,0.0003863,5]
[361829096,1747823684500,-1605.11,0.0003863,5]
[361829097,1747823684510,-4064.18,0.0003863,5]
[361829098,1747823684520,-583.63,0.0003863,5]
[361829099,1747823684530,-2791.01,0.0003863,5]
[361829100,1747823684540,-3277.38,0.0003863,5]
[361829101,1747823684550,-1946.19,0.0003863,5]
[361829102,1747823684559,-486.64,0.0003863,5]
[361829103,1747823684569,-4162.95,0.0003863,5]
[361829104,1747823684579,-1793.09,0.0003863,5]
[361829105,1747823684589,-2365.3,0.0003863,5]
[361829106,1747823684599,-5030.39,0.0003863,5]
[361829107,1747823684609,-1065.78,0.0003863,5]
[361829108,1747823684619,-5351.26,0.0003863,5]
[361829109,1747823684629,-420.0,0.0003863,5]
[361829110,1747823684638,-1488.03,0.0003863,5]
[361829111,1747823684649,-5387.66,0.0003863,5]
[361829112,1747823684659,-1284.33,0.0003863,5]
[361829113,1747823684670,-853.5,0.0003863,5]
[361829114,1747823684679,-4366.01,0.0003863,5]
[361829115,1747823684690,-3564.21,0.0003863,5]
[361829116,1747823684699,-643.95,0.0003863,5]
[361829117,1747823684709,-11304.41,0.0003863,5]
[361829118,1747823684719,-8618.58,0.0003863,5]
[361829119,1747823684729,-751.7,0.0003863,5]
[361829120,1747823684739,-873.4,0.0003863,5]
[361829121,1747823684749,-1096.95,0.0003863,5]
[361829122,1747823684758,-441.74,0.0003863,5]
[361829123,1747823684768,-781.82,0.0003863,5]
[361829124,1747823684778,-871.43,0.0003863,5]
[361829125,1747823684787,-778.01,0.0003863,5]
[361829126,1747823684802,-3424.15,0.0003863,5]
[361829127,1747823684811,-6336.25,0.0003863,5]
[361829128,1747823684820,-333.89031064,0.0003863,5]
[361829129,1747823684831,-575.11,0.0003863,5]
[361829130,1747823684841,-469.12,0.0003863,5]
[361829131,1747823684851,-5264.38,0.0003863,5]
[361829132,1747823684861,-2778.38,0.0003863,5]
[361829133,1747823684873,-2282.35,0.0003863,5]
[361829134,1747823684882,-2508.06,0.0003863,5]
[361829135,1747823684892,-477.54,0.0003863,5]
[361829136,1747823684903,-45711.39,0.0003863,5]
[361829137,1747823684913,-1438.01,0.0003863,5]
[361829138,1747823684924,-2227.33,0.0003863,5]
[361829139,1747823684935,-2994.99,0.0003863,5]
[361829140,1747823684945,-492.73,0.0003863,5]
[361829141,1747823684956,-845.16,0.0003863,5]
[361829142,1747823684966,-2847.74,0.0003863,5]
[361829143,1747823684975,-7033.02,0.0003863,5]
[361829144,1747823684985,-20631.06,0.0003863,5]
[361829145,1747823684994,-1653.01,0.0003863,5]
[361829146,1747823685004,-480.69,0.0003863,5]
[361829147,1747823685013,-440.6,0.0003863,5]
[361829148,1747823685022,-908.75,0.0003863,5]
[361829149,1747823685031,-1811.64,0.0003863,5]
[361829150,1747823685040,-1675.59,0.0003863,5]
[361829151,1747823685050,-1620.28,0.0003863,5]
[361829152,1747823685059,-2039.96,0.0003863,5]
[361829153,1747823685068,-1341.01,0.0003863,5]
[361829154,1747823685078,-659.87,0.0003863,5]
[361829155,1747823685087,-1650.39,0.0003863,5]
[361829156,1747823685097,-2331.07,0.0003863,5]
[361829157,1747823685106,-1130.47,0.0003863,5]
[361829158,1747823685115,-8529.77,0.0003863,5]
[361829159,1747823685124,-1170.52,0.0003863,5]
[361829160,1747823685133,-1019.14,0.0003863,5]
[361829161,1747823685143,-594.46,0.0003863,5]
[361829162,1747823685151,-420.0,0.0003863,5]
[361829163,1747823685161,-528.88,0.0003863,5]
[361829164,1747823685170,-729.81,0.0003863,5]
[361829165,1747823685179,-6448.31,0.0003863,5]
[361829166,1747823685187,-157.265004,0.0003863,5]
[361829167,1747823685197,-4031.81,0.0003863,5]
[361829168,1747823685207,-15980.3,0.0003863,2]
[361829169,1747823685217,-569.82,0.0003863,5]
[361829170,1747823685226,-13852.49,0.0003863,5]
[361829171,1747823685235,-1991.55,0.0003863,5]
[361829172,1747823685245,-1826.19,0.0003863,5]
[361829173,1747823685254,-1260.39,0.0003863,5]
[361829174,1747823685263,-711.84,0.0003863,5]
[361829175,1747823685272,-932.88,0.0003863,5]
[361829176,1747823685282,-1316.77,0.0003863,5]
[361829177,1747823685291,-1559.3,0.0003863,5]
[361829178,1747823685301,-1672.61,0.0003863,5]
[361829179,1747823685310,-1828.91,0.0003863,5]
[361829180,1747823685319,-6643.48,0.0003863,5]
[361829181,1747823685328,-5987.12,0.0003863,5]
[361829182,1747823685338,-4970.74,0.0003863,5]
[361829183,1747823685348,-908.99,0.0003863,5]
[361829184,1747823685358,-1754.62,0.0003863,5]
[361829185,1747823685367,-636.17,0.0003863,5]
[361829186,1747823685377,-907.69,0.0003863,5]
[361829187,1747823685387,-434.27,0.0003863,5]
[361829188,1747823685397,-14282.24,0.0003863,5]
[361829189,1747823685407,-2354.7,0.0003863,5]
[361829190,1747823685416,-2934.17,0.0003863,5]
[361829191,1747823685425,-420.0,0.0003863,5]
[361829192,1747823685435,-2098.09,0.0003863,5]
[361829193,1747823685445,-2370.12,0.0003863,5]
[361829194,1747823685455,-635.77,0.0003863,5]
[361829195,1747823685465,-1608.41,0.0003863,5]
[361829196,1747823685476,-2448.57,0.0003863,5]
[361829197,1747823685486,-565.39,0.0003863,5]
[361829198,1747823685496,-832.67,0.0003863,5]
[361829199,1747823685506,-1727.02,0.0003863,5]
[361829200,1747823685515,-2132.27,0.0003863,5]
[361829201,1747823685525,-674.57,0.0003863,5]
[361829202,1747823685534,-1444.81,0.0003863,5]
[361829203,1747823685544,-1244.04,0.0003863,5]
[361829204,1747823685554,-5215.67,0.0003863,5]
[361829205,1747823685563,-14461.5,0.0003863,5]
[361829206,1747823685573,-4167.33,0.0003863,5]
[361829207,1747823685583,-888.13,0.0003863,5]
[361829208,1747823685593,-207938.64,0.0003863,5]
[361829209,1747823685603,-548.09,0.0003863,5]
[361829210,1747823685612,-3257.11,0.0003863,5]
[361829211,1747823685622,-2319.06,0.0003863,5]
[361829212,1747823685631,-1507.21,0.0003863,5]
[361829213,1747823685641,-1493.55,0.0003863,5]
[361829214,1747823685650,-2557.88,0.0003863,5]
[361829215,1747823685660,-1088.44,0.0003863,5]
[361829216,1747823685669,-2873.2,0.0003863,5]
[361829217,1747823685678,-697.67,0.0003863,5]
[361829218,1747823685688,-5582.21,0.0003863,5]
[361829219,1747823685698,-480.01,0.0003863,5]
[361829220,1747823685709,-2282.96,0.0003863,5]
[361829221,1747823685719,-1657.0,0.0003863,5]
[361829222,1747823685730,-420.0,0.0003863,5]
[361829223,1747823685741,-799.92,0.0003863,5]
[361829224,1747823685752,-1063.9,0.0003863,5]
[361829225,1747823685763,-18765.11,0.0003863,5]
[361829226,1747823685774,-323.46911634,0.0003863,5]
[361829227,1747823685785,-673.17,0.0003863,5]
[361829228,1747823685795,-3847.23,0.0003863,5]
[361829229,1747823685806,-549.05,0.0003863,5]
[361829230,1747823685816,-2564.95,0.0003863,5]
[361829231,1747823685826,-474.32,0.0003863,5]
[361829232,1747823685836,-1818.07,0.0003863,5]
[361829233,1747823685846,-42262.48,0.0003863,5]
[361829234,1747823685856,-1719.68,0.0003863,5]
[361829235,1747823685866,-4510.74,0.0003863,5]
[361829236,1747823685876,-516.93,0.0003863,5]
[361829237,1747823685887,-3137.08,0.0003863,5]
[361829238,1747823685898,-506.82,0.0003863,5]
[361829239,1747823685908,-9532.22,0.0003863,5]
[361829240,1747823685919,-1001.23,0.0003863,5]
[361829241,1747823685929,-1349.86,0.0003863,5]
[361829242,1747823685940,-1554.78,0.0003863,5]
[361829243,1747823685953,-627.61,0.0003863,5]
[361829244,1747823685963,-874.84,0.0003863,5]
[361829245,1747823685974,-670.93,0.0003863,5]
[361829246,1747823685986,-199.95002468,0.0003863,5]
[361829247,1747823685996,-1909.1,0.0003863,5]
[361829248,1747823686007,-3667.82,0.0003863,5]
[361829249,1747823686017,-150.0,0.00038688,7]
[361829250,1747823686027,-1556.0,0.00038709,20]
[361829251,1747823686037,-150.0,0.00038755,7]
[361829252,1747823686047,-722.73,0.00038767,2]
[361829253,1747823686058,-1240.47,0.00038767,30]
[361829254,1747823686069,-1240.47,0.00038767,30]
[361829255,1747823686080,-1240.47,0.00038767,30]
[361829256,1747823686090,-1240.47,0.00038767,30]
[361829257,1747823686101,-150.0,0.00038822,7]
[361829258,1747823686111,-10700.0,0.0003888,120]
[361829259,1747823686122,-5000.0,0.0003888,2]
[361829260,1747823686133,-150.0,0.00038889,7]
[361829261,1747823686143,-160.0,0.000389,28]
[361829262,1747823686153,-756.58,0.000389,14]
[361829263,1747823686163,-868.63,0.00038904,5]
[361829264,1747823686174,-771.73,0.00038904,5]
[361829265,1747823686184,-1206.97,0.00038904,5]
[361829266,1747823686195,-1764.15,0.00038904,5]
[361829267,1747823686206,-550.16,0.00038904,5]
[361829268,1747823686216,-497.1,0.00038904,5]
[361829269,1747823686226,-965.56,0.00038904,5]
[361829270,1747823686236,-616.51,0.00038904,5]
[361829271,1747823686246,-562.65,0.00038904,5]
[361829272,1747823686256,-611.48,0.00038904,5]
[361829273,1747823686266,-506.54,0.00038904,5]
[361829274,1747823686275,-499.33,0.00038904,5]
[361829275,1747823686286,-911.46,0.00038904,5]
[361829276,1747823686297,-1153.75,0.00038904,5]
[361829277,1747823686307,-730.43,0.00038904,5]
[361829278,1747823686317,-579.77,0.00038904,5]
[361829279,1747823686328,-1697.54,0.00038904,5]
[361829280,1747823686338,-570.61,0.00038904,5]
[361829281,1747823686348,-1490.72,0.00038904,5]
[361829282,1747823686359,-917.84,0.00038904,5]
[361829283,1747823686370,-642.67,0.00038904,5]
[361829284,1747823686381,-788.01,0.00038904,5]
[361829285,1747823686391,-901.58,0.00038904,5]
[361829286,1747823686406,-807.74,0.00038904,5]
[361829287,1747823686416,-3015.53,0.00038904,5]
[361829288,1747823686427,-460.17,0.00038904,5]
[361829289,1747823686438,-642.11,0.00038904,5]
[361829290,1747823686450,-1185.77,0.00038904,5]
[361829291,1747823686460,-973.19,0.00038904,5]
[361829292,1747823686471,-497.57,0.00038904,5]
[361829293,1747823686483,-1098.15,0.00038904,5]
[361829294,1747823686494,-685.16,0.00038904,5]
[361829295,1747823686506,-448.34,0.00038904,5]
[361829296,1747823686516,-1485.21,0.00038904,5]
[361829297,1747823686527,-818.23,0.00038904,5]
[361829298,1747823686537,-443.81,0.00038904,5]
[361829299,1747823686548,-1526.88,0.00038904,5]
[361829300,1747823686558,-470.16,0.00038904,5]
[361829301,1747823686570,-443.58,0.00038904,5]
[361829302,1747823686580,-669.64,0.00038904,5]
[361829303,1747823686592,-420.0,0.00038904,5]
[361829304,1747823686602,-937.45,0.00038904,5]
[361829305,1747823686612,-2266.87,0.00038904,5]
[361829306,1747823686623,-424.86,0.00038904,5]
[361829307,1747823686634,-442.68,0.00038904,5]
[361829308,1747823686644,-597.09,0.00038904,5]
[361829309,1747823686654,-655.53,0.00038904,5]
[361829310,1747823686664,-636.42,0.00038904,5]
[361829311,1747823686675,-838.78,0.00038904,5]
[361829312,1747823686686,-493.93,0.00038904,5]
[361829313,1747823686696,-560.23,0.00038904,5]
[361829314,1747823686707,-1078.18,0.00038904,5]
[361829315,1747823686718,-1065.69,0.00038904,5]
[361829316,1747823686728,-1253.93,0.00038904,5]
[361829317,1747823686739,-1274.75,0.00038904,5]
[361829318,1747823686750,-463.91,0.00038904,5]
[361829319,1747823686760,-721.97,0.00038904,5]
[361829320,1747823686771,-2322.3,0.00038904,5]
[361829321,1747823686781,-821.62,0.00038904,5]
[361829322,1747823686791,-422.38,0.00038904,5]
[361829323,1747823686802,-1544.61,0.00038904,5]
[361829324,1747823686813,-420.0,0.00038904,5]
[361829325,1747823686824,-550.85,0.00038904,5]
[361829326,1747823686835,-499.46,0.00038904,5]
[361829327,1747823686845,-616.6,0.00038904,5]
[361829328,1747823686856,-678.04,0.00038904,5]
[361829329,1747823686866,-546.75,0.00038904,5]
[361829330,1747823686876,-1170.85,0.00038904,5]
[361829331,1747823686886,-402.27023622,0.00038904,5]
[361829332,1747823686896,-1581.01,0.00038904,5]
[361829333,1747823686907,-2020.82,0.00038904,5]
[361829334,1747823686918,-1587.36,0.00038904,5]
[361829335,1747823686928,-528.73,0.00038904,5]
[361829336,1747823686939,-440.31,0.00038904,5]
[361829337,1747823686949,-521.1967443,0.00038904,5]
[361829338,1747823686961,-835.65,0.00038904,5]
[361829339,1747823686972,-530.24,0.00038904,5]
[361829340,1747823686983,-632.49,0.00038904,5]
[361829341,1747823686993,-712.53,0.00038904,5]
[361829342,1747823687004,-905.81,0.00038904,5]
[361829343,1747823687014,-1500.35,0.00038904,5]
[361829344,1747823687024,-913.23,0.00038904,5]
[361829345,1747823687034,-891.23,0.00038904,5]
[361829346,1747823687045,-532.78,0.00038904,5]
[361829347,1747823687056,-793.59,0.00038904,5]
[361829348,1747823687066,-716.67,0.00038904,5]
[361829349,1747823687076,-431.22,0.00038904,5]
[361829350,1747823687087,-3321.89,0.00038904,5]
[361829351,1747823687097,-655.87,0.00038904,5]
[361829352,1747823687107,-420.0,0.00038904,5]
[361829353,1747823687117,-464.92,0.00038904,5]
[361829354,1747823687128,-752.46,0.00038904,5]
[361829355,1747823687138,-1164.32,0.00038904,5]
[361829356,1747823687148,-447.46,0.00038904,5]
[361829357,1747823687159,-970.46,0.00038904,5]
[361829358,1747823687169,-1182.51,0.00038904,5]
[361829359,1747823687180,-2566.8,0.00038904,3]
[361829360,1747823687191,-986.1,0.00038904,5]
[361829361,1747823687202,-3544.76,0.00038904,5]
[361829362,1747823687213,-451.58111517,0.00038904,5]
[361829363,1747823687223,-528.46,0.00038904,5]
[361829364,1747823687234,-1116.24,0.00038904,5]
[361829365,1747823687244,-607.2,0.00038904,5]
[361829366,1747823687254,-498.41,0.00038904,5]
[361829367,1747823687264,-511.54,0.00038904,5]
[361829368,1747823687275,-1446.26,0.00038904,5]
[361829369,1747823687286,-635.53,0.00038904,5]
[361829370,1747823687296,-602.05,0.00038904,5]
[361829371,1747823687307,-3171.93,0.00038904,5]
[361829372,1747823687319,-672.06,0.00038904,5]
[361829373,1747823687328,-1136.92,0.00038904,5]